[Event "NJSK 2024 A"]
[Site "Groningen, Netherlands"]
[Date "2024.04.29"]
[Round "3.2"]
[White "Moskalets, Sofiia"]
[Black "Bakija, Alan"]
[Result "0-1"]
[TimeControl "90min/40moves + 30min + 30sec/move"]
[WhiteElo "2050"]
[BlackElo "2101"]

1. e4 {[%clk 01:30:57]} {[%emt 00:00:02]} d6 {[%clk 01:30:56]} {[%emt
00:00:04]} 2. d4 {[%clk 01:31:19]} {[%emt 00:00:08]} Nf6 {[%clk 01:31:22]}
{[%emt 00:00:04]} 3. Nc3 {[%clk 01:31:43]} {[%emt 00:00:06]} e5 {[%clk
01:31:49]} {[%emt 00:00:04]} 4. Nf3 {[%clk 01:32:05]} {[%emt 00:00:07]} Nbd7
{[%clk 01:32:14]} {[%emt 00:00:04]} 5. Rg1 {[%clk 01:32:29]} {[%emt 00:00:07]}
c6 {[%clk 01:32:25]} {[%emt 00:00:20]} 6. g4 {[%clk 01:32:40]} {[%emt
00:00:18]} h6 {[%clk 01:32:52]} {[%emt 00:00:03]} 7. Be3 {[%clk 01:31:54]}
{[%emt 00:01:17]} Be7 {[%clk 01:32:11]} {[%emt 00:01:10]} 8. Be2 {[%clk
01:30:26]} {[%emt 00:01:58]} Nf8 {[%clk 01:25:06]} {[%emt 00:07:35]} 9. h3
{[%clk 01:16:46]} {[%emt 00:14:10]} Ng6 {[%clk 01:23:00]} {[%emt 00:02:36]} 10.
Qd2 {[%clk 01:13:54]} {[%emt 00:03:22]} Nh7 {[%clk 01:19:22]} {[%emt 00:04:08]}
11. O-O-O {[%clk 01:05:36]} {[%emt 00:08:48]} Ng5 {[%clk 01:17:46]} {[%emt
00:02:06]} 12. Rg3 {[%clk 00:57:18]} {[%emt 00:08:48]} b5 {[%clk 01:03:53]}
{[%emt 00:14:23]} 13. Bd3 {[%clk 00:41:52]} {[%emt 00:15:57]} a6 {[%clk
00:48:43]} {[%emt 00:15:39]} 14. Ne2 {[%clk 00:37:33]} {[%emt 00:04:49]} Nxf3
{[%clk 00:41:27]} {[%emt 00:07:45]} 15. Rxf3 {[%clk 00:37:57]} {[%emt
00:00:06]} Bg5 {[%clk 00:41:36]} {[%emt 00:00:21]} 16. dxe5 {[%clk 00:33:24]}
{[%emt 00:05:03]} dxe5 {[%clk 00:34:52]} {[%emt 00:07:14]} 17. Qc3 {[%clk
00:32:22]} {[%emt 00:01:32]} Qc7 {[%clk 00:29:11]} {[%emt 00:06:12]} 18. Kb1
{[%clk 00:27:57]} {[%emt 00:04:55]} Be6 {[%clk 00:28:24]} {[%emt 00:01:16]} 19.
Bc5 {[%clk 00:25:43]} {[%emt 00:02:45]} O-O-O {[%clk 00:28:35]} {[%emt
00:00:18]} 20. Rg3 {[%clk 00:20:31]} {[%emt 00:05:42]} Rd7 {[%clk 00:28:27]}
{[%emt 00:00:39]} 21. Nc1 {[%clk 00:20:00]} {[%emt 00:01:01]} Rhd8 {[%clk
00:28:02]} {[%emt 00:00:55]} 22. Bb4 {[%clk 00:17:59]} {[%emt 00:02:31]} Re8
{[%clk 00:25:54]} {[%emt 00:02:37]} 23. Nb3 {[%clk 00:14:18]} {[%emt 00:04:13]}
Bxb3 {[%clk 00:26:15]} {[%emt 00:00:08]} 24. axb3 {[%clk 00:13:47]} {[%emt
00:01:02]} Kb7 {[%clk 00:22:29]} {[%emt 00:04:17]} 25. Ba5 {[%clk 00:12:04]}
{[%emt 00:02:13]} Qc8 {[%clk 00:22:48]} {[%emt 00:00:10]} 26. Ka2 {[%clk
00:08:49]} {[%emt 00:03:45]} Bd8 {[%clk 00:21:22]} {[%emt 00:01:56]} 27. b4
{[%clk 00:07:00]} {[%emt 00:02:19]} Bxa5 {[%clk 00:17:13]} {[%emt 00:04:39]} 28.
bxa5 {[%clk 00:07:25]} {[%emt 00:00:05]} c5 {[%clk 00:17:07]} {[%emt 00:00:36]}
29. Be2 {[%clk 00:05:55]} {[%emt 00:02:00]} Rxd1 {[%clk 00:13:34]} {[%emt
00:04:02]} 30. Bxd1 {[%clk 00:06:21]} {[%emt 00:00:05]} Nf4 {[%clk 00:13:32]}
{[%emt 00:00:31]} 31. g5 {[%clk 00:03:51]} {[%emt 00:03:01]} h5 {[%clk
00:13:39]} {[%emt 00:00:23]} 32. Rf3 {[%clk 00:03:22]} {[%emt 00:00:58]} g6
{[%clk 00:12:40]} {[%emt 00:01:30]} 33. b3 {[%clk 00:02:52]} {[%emt 00:01:01]}
Qc7 {[%clk 00:12:20]} {[%emt 00:00:49]} 34. h4 {[%clk 00:00:54]} {[%emt
00:02:28]} Qd6 {[%clk 00:10:28]} {[%emt 00:02:21]} 35. Rxf4 {[%clk 00:00:41]}
{[%emt 00:00:44]} exf4 {[%clk 00:10:49]} {[%emt 00:00:07]} 36. Qg7 {[%clk
00:00:46]} {[%emt 00:00:27]} Re7 {[%clk 00:09:02]} {[%emt 00:02:17]} 37. Bf3
{[%clk 00:01:03]} {[%emt 00:00:14]} Qe5 {[%clk 00:09:03]} {[%emt 00:00:27]} 38.
Qf8 {[%clk 00:00:53]} {[%emt 00:00:41]} Rd7 {[%clk 00:08:46]} {[%emt 00:00:47]}
39. Qg8 {[%clk 00:00:36]} {[%emt 00:00:48]} Qc3 {[%clk 00:06:07]} {[%emt
00:03:07]} 40. Bd1 {[%clk 00:00:34]} {[%emt 00:00:33]} Qxa5+ {[%clk 00:06:15]}
{[%emt 00:00:23]} 0-1

[Event "NJSK 2024 A"]
[Site "Groningen, Netherlands"]
[Date "2024.04.29"]
[Round "3.3"]
[White "Snijders, Take"]
[Black "Smid, Jelle"]
[Result "1/2-1/2"]
[TimeControl "90min/40moves + 30min + 30sec/move"]
[WhiteElo "2090"]
[BlackElo "1917"]

1. e4 {[%clk 01:30:57]} {[%emt 00:00:03]} e5 {[%clk 01:30:14]} {[%emt
00:00:47]} 2. Nf3 {[%clk 01:31:03]} {[%emt 00:00:23]} Nc6 {[%clk 01:30:39]}
{[%emt 00:00:06]} 3. Bc4 {[%clk 01:31:16]} {[%emt 00:00:17]} Nf6 {[%clk
01:31:02]} {[%emt 00:00:07]} 4. d3 {[%clk 01:30:40]} {[%emt 00:01:06]} Bc5
{[%clk 01:30:48]} {[%emt 00:00:44]} 5. c3 {[%clk 01:30:22]} {[%emt 00:00:48]}
d6 {[%clk 01:30:34]} {[%emt 00:00:44]} 6. O-O {[%clk 01:27:36]} {[%emt
00:03:15]} O-O {[%clk 01:22:52]} {[%emt 00:08:13]} 7. Re1 {[%clk 01:26:56]}
{[%emt 00:01:10]} a6 {[%clk 01:21:41]} {[%emt 00:01:41]} 8. a4 {[%clk
01:26:19]} {[%emt 00:01:05]} Ba7 {[%clk 01:21:11]} {[%emt 00:01:02]} 9. h3
{[%clk 01:25:02]} {[%emt 00:01:47]} h6 {[%clk 01:21:11]} {[%emt 00:00:30]} 10.
Nbd2 {[%clk 01:24:16]} {[%emt 00:01:15]} Ne7 {[%clk 01:11:53]} {[%emt
00:09:49]} 11. Nf1 {[%clk 01:20:20]} {[%emt 00:04:26]} Ng6 {[%clk 01:11:53]}
{[%emt 00:00:31]} 12. Ng3 {[%clk 01:16:56]} {[%emt 00:03:53]} c6 {[%clk
01:11:18]} {[%emt 00:01:06]} 13. Bb3 {[%clk 01:05:22]} {[%emt 00:12:03]} Re8
{[%clk 01:08:50]} {[%emt 00:02:57]} 14. d4 {[%clk 01:01:08]} {[%emt 00:04:44]}
Qc7 {[%clk 01:06:57]} {[%emt 00:02:24]} 15. a5 {[%clk 00:55:05]} {[%emt
00:06:33]} d5 {[%clk 00:53:49]} {[%emt 00:13:39]} 16. dxe5 {[%clk 00:50:14]}
{[%emt 00:05:20]} dxe4 {[%clk 00:49:35]} {[%emt 00:04:44]} 17. exf6 {[%clk
00:38:50]} {[%emt 00:11:54]} Qxg3 {[%clk 00:49:05]} {[%emt 00:00:59]} 18. Be3
{[%clk 00:38:14]} {[%emt 00:01:08]} Bxe3 {[%clk 00:47:10]} {[%emt 00:02:24]} 19.
Rxe3 {[%clk 00:38:40]} {[%emt 00:00:04]} Qf4 {[%clk 00:46:53]} {[%emt
00:00:47]} 20. fxg7 {[%clk 00:37:06]} {[%emt 00:02:04]} Bxh3 {[%clk 00:43:05]}
{[%emt 00:04:18]} 21. gxh3 {[%clk 00:35:46]} {[%emt 00:01:49]} exf3 {[%clk
00:43:20]} {[%emt 00:00:16]} 22. Rxf3 {[%clk 00:25:24]} {[%emt 00:10:52]} Re1+
{[%clk 00:43:30]} {[%emt 00:00:19]} 23. Qxe1 {[%clk 00:25:39]} {[%emt
00:00:15]} Qxf3 {[%clk 00:43:56]} {[%emt 00:00:05]} 24. Qe3 {[%clk 00:24:31]}
{[%emt 00:01:38]} Qf5 {[%clk 00:42:50]} {[%emt 00:01:35]} 25. Qxh6 {[%clk
00:20:37]} {[%emt 00:04:25]} Re8 {[%clk 00:41:17]} {[%emt 00:02:04]} 26. Rd1
{[%clk 00:20:16]} {[%emt 00:00:50]} Qf6 {[%clk 00:40:40]} {[%emt 00:01:07]} 27.
Kf1 {[%clk 00:18:06]} {[%emt 00:02:39]} Qf3 {[%clk 00:37:01]} {[%emt 00:04:09]}
28. Kg1 {[%clk 00:13:09]} {[%emt 00:05:28]} Qf6 {[%clk 00:36:27]} {[%emt
00:01:04]} 29. Kf1 {[%clk 00:11:57]} {[%emt 00:01:42]} Qf3 {[%clk 00:36:49]}
{[%emt 00:00:07]} 30. Kg1 {[%clk 00:12:18]} {[%emt 00:00:09]} Qf6 {[%emt
00:00:22]} 1/2-1/2

[Event "NJSK 2024 A"]
[Site "Groningen, Netherlands"]
[Date "2024.04.29"]
[Round "3.4"]
[White "Blom, Rens"]
[Black "Khatniuk, Anastasiia"]
[Result "1/2-1/2"]
[TimeControl "90min/40moves + 30min + 30sec/move"]
[WhiteElo "1963"]
[BlackElo "2012"]

1. c4 {[%clk 01:30:57]} {[%emt 00:00:02]} e6 {[%clk 01:30:52]} {[%emt
00:00:08]} 2. e4 {[%clk 01:31:22]} {[%emt 00:00:06]} d5 {[%clk 01:31:16]}
{[%emt 00:00:05]} 3. cxd5 {[%clk 01:31:46]} {[%emt 00:00:06]} exd5 {[%clk
01:31:41]} {[%emt 00:00:05]} 4. exd5 {[%clk 01:32:12]} {[%emt 00:00:05]} Nf6
{[%clk 01:32:06]} {[%emt 00:00:05]} 5. Bb5+ {[%clk 01:32:37]} {[%emt 00:00:06]}
Nbd7 {[%clk 01:32:28]} {[%emt 00:00:06]} 6. Nc3 {[%clk 01:33:00]} {[%emt
00:00:07]} Be7 {[%clk 01:32:50]} {[%emt 00:00:08]} 7. Nf3 {[%clk 01:33:23]}
{[%emt 00:00:07]} O-O {[%clk 01:33:12]} {[%emt 00:00:08]} 8. d4 {[%clk
01:33:48]} {[%emt 00:00:07]} Nb6 {[%clk 01:33:27]} {[%emt 00:00:13]} 9. h3
{[%clk 01:34:02]} {[%emt 00:00:16]} Nbxd5 {[%clk 01:33:35]} {[%emt 00:00:22]}
10. O-O {[%clk 01:34:14]} {[%emt 00:00:18]} c6 {[%clk 01:33:35]} {[%emt
00:00:31]} 11. Bd3 {[%clk 01:33:14]} {[%emt 00:01:29]} h6 {[%clk 01:31:43]}
{[%emt 00:02:21]} 12. Re1 {[%clk 01:32:14]} {[%emt 00:01:32]} Be6 {[%clk
01:30:23]} {[%emt 00:01:49]} 13. Bd2 {[%clk 01:18:50]} {[%emt 00:13:54]} Re8
{[%clk 01:25:36]} {[%emt 00:05:17]} 14. a3 {[%clk 01:04:49]} {[%emt 00:14:32]}
Bf8 {[%clk 01:13:40]} {[%emt 00:12:25]} 15. Na4 {[%clk 01:00:43]} {[%emt
00:04:37]} Nb6 {[%clk 01:08:51]} {[%emt 00:05:17]} 16. Nxb6 {[%clk 00:54:37]}
{[%emt 00:06:37]} Qxb6 {[%clk 01:08:07]} {[%emt 00:01:14]} 17. Bc3 {[%clk
00:52:22]} {[%emt 00:02:46]} Nd5 {[%clk 01:02:20]} {[%emt 00:06:16]} 18. Bc2
{[%clk 00:45:37]} {[%emt 00:07:15]} Qd8 {[%clk 00:57:16]} {[%emt 00:05:33]} 19.
Ne5 {[%clk 00:40:08]} {[%emt 00:06:01]} Qf6 {[%clk 00:53:14]} {[%emt 00:04:31]}
20. Qd3 {[%clk 00:34:14]} {[%emt 00:06:24]} g6 {[%clk 00:52:05]} {[%emt
00:01:39]} 21. Qg3 {[%clk 00:33:40]} {[%emt 00:01:05]} Bg7 {[%clk 00:50:30]}
{[%emt 00:02:04]} 22. Bd2 {[%clk 00:25:28]} {[%emt 00:08:42]} Kh7 {[%clk
00:47:32]} {[%emt 00:03:28]} 23. h4 {[%clk 00:20:22]} {[%emt 00:05:37]} Bf5
{[%clk 00:45:15]} {[%emt 00:02:47]} 24. Bb3 {[%clk 00:19:28]} {[%emt 00:01:25]}
Rad8 {[%clk 00:43:33]} {[%emt 00:02:10]} 25. Rac1 {[%clk 00:18:55]} {[%emt
00:01:04]} Re7 {[%clk 00:35:25]} {[%emt 00:08:37]} 26. Qh2 {[%clk 00:16:15]}
{[%emt 00:03:11]} Qd6 {[%clk 00:31:56]} {[%emt 00:03:58]} 27. g4 {[%clk
00:14:22]} {[%emt 00:02:25]} Bc8 {[%clk 00:30:59]} {[%emt 00:01:27]} 28. h5
{[%clk 00:12:04]} {[%emt 00:02:49]} g5 {[%clk 00:20:22]} {[%emt 00:11:06]} 29.
Bc2+ {[%clk 00:08:53]} {[%emt 00:03:41]} Kg8 {[%clk 00:20:43]} {[%emt
00:00:08]} 30. Qg3 {[%clk 00:09:06]} {[%emt 00:00:18]} f6 {[%clk 00:16:16]}
{[%emt 00:04:57]} 31. Ng6 {[%clk 00:08:05]} {[%emt 00:01:31]} Qxg3+ {[%clk
00:16:37]} {[%emt 00:00:09]} 32. fxg3 {[%clk 00:08:31]} {[%emt 00:00:05]} Rxe1+
{[%clk 00:16:59]} {[%emt 00:00:07]} 33. Rxe1 {[%clk 00:08:55]} {[%emt
00:00:06]} Bxg4 {[%clk 00:17:12]} {[%emt 00:00:17]} 34. Ne7+ {[%clk 00:06:57]}
{[%emt 00:02:27]} Nxe7 {[%clk 00:15:55]} {[%emt 00:01:47]} 35. Rxe7 {[%clk
00:07:23]} {[%emt 00:00:05]} Rd7 {[%clk 00:15:57]} {[%emt 00:00:28]} 36. Re8+
{[%clk 00:07:08]} {[%emt 00:00:45]} Bf8 {[%clk 00:15:23]} {[%emt 00:01:04]} 37.
Bb4 {[%clk 00:07:11]} {[%emt 00:00:27]} Bxh5 {[%clk 00:14:28]} {[%emt
00:01:24]} 38. Bb3+ {[%clk 00:05:27]} {[%emt 00:02:16]} Bf7 {[%clk 00:12:27]}
{[%emt 00:02:30]} 39. Rxf8+ {[%clk 00:05:36]} {[%emt 00:00:22]} Kg7 {[%clk
00:12:53]} {[%emt 00:00:04]} 40. Rxf7+ {[%clk 00:05:57]} {[%emt 00:00:09]} Rxf7
{[%clk 00:13:18]} {[%emt 00:00:03]} 41. Bxf7 {[%clk 00:06:22]} {[%emt
00:00:05]} Kxf7 {[%clk 00:13:44]} {[%emt 00:00:05]} 42. Kf2 {[%clk 00:04:27]}
{[%emt 00:02:25]} h5 {[%clk 00:11:40]} {[%emt 00:02:34]} 43. Kf3 {[%clk
00:29:36]} {[%emt 00:05:21]} b5 {[%clk 00:39:30]} {[%emt 00:02:40]} 44. Ke4
{[%clk 00:25:01]} {[%emt 00:05:06]} Ke6 {[%clk 00:39:50]} {[%emt 00:00:09]} 45.
Bc5 {[%clk 00:22:20]} {[%emt 00:03:10]} a5 {[%clk 00:39:08]} {[%emt 00:01:12]}
46. Bb6 {[%clk 00:22:38]} {[%emt 00:00:12]} a4 {[%clk 00:38:20]} {[%emt
00:01:17]} 47. Bd8 {[%clk 00:23:00]} {[%emt 00:00:09]} f5+ {[%clk 00:36:57]}
{[%emt 00:01:53]} 48. Kd3 {[%clk 00:23:05]} {[%emt 00:00:25]} f4 {[%clk
00:34:12]} {[%emt 00:03:15]} 49. gxf4 {[%clk 00:23:13]} {[%emt 00:00:22]} gxf4
{[%clk 00:34:36]} {[%emt 00:00:06]} 50. Ke4 {[%clk 00:23:29]} {[%emt 00:00:14]}
f3 {[%clk 00:34:36]} {[%emt 00:00:30]} 51. Kxf3 {[%clk 00:23:51]} {[%emt
00:00:08]} Kd5 {[%clk 00:35:02]} {[%emt 00:00:03]} 52. Bf6 {[%clk 00:21:07]}
{[%emt 00:03:14]} Kc4 {[%clk 00:31:24]} {[%emt 00:04:08]} 53. Kf4 {[%clk
00:21:11]} {[%emt 00:00:27]} b4 {[%clk 00:26:23]} {[%emt 00:05:31]} 54. axb4
{[%clk 00:21:11]} {[%emt 00:00:31]} Kxb4 {[%clk 00:26:46]} {[%emt 00:00:06]} 55.
Kg5 {[%clk 00:20:18]} {[%emt 00:01:22]} Kc4 {[%clk 00:26:09]} {[%emt 00:01:07]}
56. Kxh5 {[%clk 00:20:35]} {[%emt 00:00:14]} a3 {[%clk 00:26:12]} {[%emt
00:00:27]} 57. bxa3 {[%clk 00:16:38]} {[%emt 00:04:28]} c5 {[%clk 00:26:33]}
{[%emt 00:00:08]} 58. a4 {[%clk 00:16:32]} {[%emt 00:00:37]} cxd4 {[%clk
00:26:44]} {[%emt 00:00:18]} 59. Be7 {[%clk 00:15:48]} {[%emt 00:01:14]} d3
{[%clk 00:26:59]} {[%emt 00:00:15]} 60. Bg5 {[%clk 00:16:10]} {[%emt 00:00:08]}
Kb4 {[%clk 00:27:25]} {[%emt 00:00:05]} 1/2-1/2

[Event "NJSK 2024 A"]
[Site "Groningen, Netherlands"]
[Date "2024.04.29"]
[Round "3.5"]
[White "Leorato, Imanol"]
[Black "Van de Poel, Jona"]
[Result "1-0"]
[TimeControl "90min/40moves + 30min + 30sec/move"]
[WhiteElo "1837"]
[BlackElo "1865"]

1. e4 {[%clk 01:30:35]} {[%emt 00:00:24]} c5 {[%clk 01:30:49]} {[%emt
00:00:10]} 2. Nf3 {[%clk 01:30:53]} {[%emt 00:00:13]} e6 {[%clk 01:31:12]}
{[%emt 00:00:07]} 3. d4 {[%clk 01:31:08]} {[%emt 00:00:15]} cxd4 {[%clk
01:31:36]} {[%emt 00:00:06]} 4. Nxd4 {[%clk 01:31:20]} {[%emt 00:00:19]} Nf6
{[%clk 01:31:57]} {[%emt 00:00:08]} 5. Nc3 {[%clk 01:31:25]} {[%emt 00:00:25]}
Nc6 {[%clk 01:32:22]} {[%emt 00:00:06]} 6. Ndb5 {[%clk 01:31:45]} {[%emt
00:00:09]} d6 {[%clk 01:32:47]} {[%emt 00:00:06]} 7. Bf4 {[%clk 01:31:58]}
{[%emt 00:00:14]} e5 {[%clk 01:33:15]} {[%emt 00:00:05]} 8. Be3 {[%clk
01:32:16]} {[%emt 00:00:11]} a6 {[%clk 01:31:44]} {[%emt 00:02:02]} 9. Na3
{[%clk 01:32:12]} {[%emt 00:00:34]} b5 {[%clk 01:20:52]} {[%emt 00:11:21]} 10.
Nd5 {[%clk 01:31:55]} {[%emt 00:00:46]} Rb8 {[%clk 01:19:34]} {[%emt 00:01:49]}
11. Nxf6+ {[%clk 01:32:12]} {[%emt 00:00:13]} Qxf6 {[%clk 01:16:24]} {[%emt
00:03:40]} 12. Be2 {[%clk 01:32:33]} {[%emt 00:00:09]} Be6 {[%clk 01:10:13]}
{[%emt 00:06:41]} 13. Nb1 {[%clk 01:24:31]} {[%emt 00:08:30]} Be7 {[%clk
01:02:10]} {[%emt 00:08:34]} 14. Nc3 {[%clk 01:20:44]} {[%emt 00:04:18]} Rc8
{[%clk 00:53:51]} {[%emt 00:08:49]} 15. Nd5 {[%clk 01:16:46]} {[%emt 00:04:28]}
Bxd5 {[%clk 00:50:58]} {[%emt 00:03:23]} 16. exd5 {[%clk 01:16:28]} {[%emt
00:00:47]} Nb8 {[%clk 00:51:04]} {[%emt 00:00:25]} 17. O-O {[%clk 01:15:10]}
{[%emt 00:01:46]} Qg6 {[%clk 00:47:39]} {[%emt 00:03:57]} 18. Rc1 {[%clk
01:08:25]} {[%emt 00:07:15]} O-O {[%clk 00:47:23]} {[%emt 00:00:46]} 19. f4
{[%clk 01:02:59]} {[%emt 00:05:56]} f5 {[%clk 00:44:17]} {[%emt 00:03:37]} 20.
Qd2 {[%clk 01:01:39]} {[%emt 00:01:49]} e4 {[%clk 00:40:00]} {[%emt 00:04:47]}
21. c4 {[%clk 01:01:05]} {[%emt 00:01:04]} bxc4 {[%clk 00:39:52]} {[%emt
00:00:39]} 22. Rxc4 {[%clk 01:01:05]} {[%emt 00:00:29]} Rxc4 {[%clk 00:33:40]}
{[%emt 00:06:43]} 23. Bxc4 {[%clk 01:01:21]} {[%emt 00:00:14]} Rc8 {[%clk
00:33:51]} {[%emt 00:00:18]} 24. Qe2 {[%clk 01:01:24]} {[%emt 00:00:27]} Qf6
{[%clk 00:24:57]} {[%emt 00:09:24]} 25. Rc1 {[%clk 00:54:13]} {[%emt 00:07:41]}
a5 {[%clk 00:19:27]} {[%emt 00:06:01]} 26. Qd2 {[%clk 00:52:57]} {[%emt
00:01:45]} Bd8 {[%clk 00:18:55]} {[%emt 00:01:02]} 27. Bb5 {[%clk 00:49:24]}
{[%emt 00:04:03]} Rc7 {[%clk 00:18:49]} {[%emt 00:00:36]} 28. Rxc7 {[%clk
00:49:00]} {[%emt 00:00:54]} Bxc7 {[%clk 00:18:26]} {[%emt 00:00:54]} 29. Bd4
{[%clk 00:49:13]} {[%emt 00:00:16]} Qd8 {[%clk 00:17:39]} {[%emt 00:01:16]} 30.
Qe3 {[%clk 00:46:45]} {[%emt 00:02:59]} Nd7 {[%clk 00:15:27]} {[%emt 00:02:42]}
31. Bxd7 {[%clk 00:43:11]} {[%emt 00:04:03]} Qxd7 {[%clk 00:15:03]} {[%emt
00:00:55]} 32. Qc3 {[%clk 00:42:55]} {[%emt 00:00:46]} Bd8 {[%clk 00:11:56]}
{[%emt 00:03:37]} 33. Kf2 {[%clk 00:42:53]} {[%emt 00:00:32]} Qe7 {[%clk
00:09:01]} {[%emt 00:03:25]} 34. g3 {[%clk 00:42:18]} {[%emt 00:01:05]} g5
{[%clk 00:08:56]} {[%emt 00:00:34]} 35. a4 {[%clk 00:29:06]} {[%emt 00:13:43]}
gxf4 {[%clk 00:05:19]} {[%emt 00:04:08]} 36. gxf4 {[%clk 00:29:28]} {[%emt
00:00:07]} Kf8 {[%clk 00:02:58]} {[%emt 00:02:50]} 37. Qh3 {[%clk 00:27:57]}
{[%emt 00:02:02]} Qf7 {[%clk 00:02:08]} {[%emt 00:01:18]} 38. Qh6+ {[%clk
00:27:59]} {[%emt 00:00:29]} Ke7 {[%clk 00:01:49]} {[%emt 00:00:50]} 39. Qg7
{[%clk 00:28:11]} {[%emt 00:00:18]} Qxg7 {[%clk 00:01:29]} {[%emt 00:00:49]} 40.
Bxg7 {[%clk 00:28:35]} {[%emt 00:00:07]} Bb6+ {[%clk 00:01:43]} {[%emt
00:00:17]} 41. Ke2 {[%clk 00:28:18]} {[%emt 00:00:46]} Kf7 {[%clk 00:00:53]}
{[%emt 00:01:20]} 42. Bc3 {[%clk 00:28:17]} {[%emt 00:00:31]} Ke7 {[%clk
00:28:39]} {[%emt 00:02:44]} 43. b4 {[%clk 00:56:41]} {[%emt 00:02:06]} axb4
{[%clk 00:28:42]} {[%emt 00:00:27]} 44. Bxb4 {[%clk 00:56:43]} {[%emt
00:00:28]} Kd7 {[%clk 00:26:34]} {[%emt 00:02:38]} 45. a5 {[%clk 00:55:23]}
{[%emt 00:01:51]} Bd4 {[%clk 00:24:08]} {[%emt 00:02:56]} 46. h4 {[%clk
00:55:00]} {[%emt 00:00:52]} h5 {[%clk 00:24:06]} {[%emt 00:00:31]} 47. Ba3
{[%clk 00:54:57]} {[%emt 00:00:34]} Bf6 {[%clk 00:18:46]} {[%emt 00:05:50]} 48.
a6 {[%clk 00:53:54]} {[%emt 00:01:34]} Kc7 {[%clk 00:18:33]} {[%emt 00:00:42]}
49. Bxd6+ {[%clk 00:52:42]} {[%emt 00:01:42]} Kb6 {[%clk 00:18:58]} {[%emt
00:00:05]} 50. Bf8 {[%clk 00:52:29]} {[%emt 00:00:43]} Bd4 {[%clk 00:11:00]}
{[%emt 00:08:26]} 51. d6 {[%clk 00:43:27]} {[%emt 00:09:34]} Kc6 {[%clk
00:06:44]} {[%emt 00:04:47]} 52. Kd2 {[%clk 00:39:33]} {[%emt 00:04:23]} Bb6
{[%clk 00:04:01]} {[%emt 00:03:12]} 53. Be7 {[%clk 00:39:15]} {[%emt 00:00:48]}
Bc5 {[%clk 00:03:15]} {[%emt 00:01:17]} 54. Kc3 {[%clk 00:37:11]} {[%emt
00:02:34]} Bb6 {[%clk 00:02:21]} {[%emt 00:01:24]} 55. Kc4 {[%clk 00:36:12]}
{[%emt 00:01:29]} Ba7 {[%clk 00:02:03]} {[%emt 00:00:48]} 56. Kc3 {[%clk
00:18:31]} {[%emt 00:18:10]} Bc5 {[%clk 00:01:47]} {[%emt 00:00:46]} 57. Bf8
{[%clk 00:18:30]} {[%emt 00:00:30]} Kd7 {[%clk 00:01:45]} {[%emt 00:00:33]} 58.
Kc4 {[%clk 00:17:28]} {[%emt 00:01:32]} Ba7 {[%clk 00:01:31]} {[%emt 00:00:45]}
59. Kd5 {[%clk 00:16:35]} {[%emt 00:01:22]} e3 {[%clk 00:01:14]} {[%emt
00:00:47]} 60. Bg7 {[%clk 00:16:57]} {[%emt 00:00:09]} e2 {[%clk 00:00:56]}
{[%emt 00:00:47]} 61. Bc3 {[%clk 00:17:20]} {[%emt 00:00:08]} Be3 {[%clk
00:00:43]} {[%emt 00:00:43]} 62. Ke5 {[%clk 00:16:38]} {[%emt 00:01:11]} Ba7
{[%clk 00:00:40]} {[%emt 00:00:34]} 63. Kxf5 {[%clk 00:15:16]} {[%emt
00:01:52]} Kxd6 {[%clk 00:00:39]} {[%emt 00:00:31]} 64. Kg5 {[%clk 00:13:47]}
{[%emt 00:01:59]} Bd4 {[%clk 00:00:34]} {[%emt 00:00:35]} 65. Be1 {[%clk
00:13:55]} {[%emt 00:00:22]} Ke6 {[%clk 00:00:50]} {[%emt 00:00:14]} 66. f5+
{[%clk 00:13:52]} {[%emt 00:00:33]} Kf7 {[%clk 00:00:45]} {[%emt 00:00:34]} 67.
Kxh5 {[%clk 00:14:03]} {[%emt 00:00:20]} Be3 {[%clk 00:00:44]} {[%emt
00:00:31]} 68. Kg4 {[%clk 00:14:19]} {[%emt 00:00:14]} Kf6 {[%clk 00:00:54]}
{[%emt 00:00:21]} 69. h5 {[%clk 00:14:04]} {[%emt 00:00:44]} Ba7 {[%clk
00:00:50]} {[%emt 00:00:34]} 70. h6 {[%clk 00:12:38]} {[%emt 00:01:55]} Kf7
{[%clk 00:01:01]} {[%emt 00:00:19]} 71. Kf3 {[%clk 00:12:49]} {[%emt 00:00:19]}
Kg8 {[%clk 00:01:10]} {[%emt 00:00:22]} 72. Kxe2 {[%clk 00:13:10]} {[%emt
00:00:10]} Kh7 {[%clk 00:01:34]} {[%emt 00:00:05]} 73. Bd2 {[%clk 00:13:34]}
{[%emt 00:00:07]} Bd4 {[%clk 00:01:51]} {[%emt 00:00:13]} 74. Kd3 {[%clk
00:13:53]} {[%emt 00:00:10]} Bb6 {[%clk 00:02:16]} {[%emt 00:00:05]} 75. Ke4
{[%clk 00:14:08]} {[%emt 00:00:15]} Bc5 {[%clk 00:02:16]} {[%emt 00:00:30]} 76.
Be3 {[%clk 00:14:29]} {[%emt 00:00:09]} Bd6 {[%clk 00:02:24]} {[%emt 00:00:23]}
77. a7 {[%clk 00:14:50]} {[%emt 00:00:08]} Bb8 {[%clk 00:02:51]} {[%emt
00:00:01]} 78. a8=Q {[%clk 00:15:04]} {[%emt 00:00:17]} Be5 {[%clk 00:03:10]}
{[%emt 00:00:11]} 79. Qb7+ {[%clk 00:15:24]} {[%emt 00:00:11]} Kh8 {[%clk
00:03:30]} {[%emt 00:00:10]} 80. Kxe5 {[%clk 00:15:47]} {[%emt 00:00:07]} Kg8
{[%clk 00:03:55]} {[%emt 00:00:05]} 81. Qg7# {[%clk 00:16:07]} {[%emt
00:00:08]} 1-0